bitfinex-derivatives/quotes_SOLF0:USTF0_20240905
["timestamp","ask_amount","ask_price","bid_price","bid_amount"]
[1725561304809,4.10015949,130.94,130.92,0.05140692]
[1725561305012,3.8192,130.94,130.92,0.05140692]
[1725561305217,0.28094911,130.93,130.92,0.05140692]
[1725561305410,3.8194,130.93,130.92,0.05140692]
[1725561305613,4.10034911,130.93,130.92,0.05140692]
[1725561305821,7.87183309,130.93,130.92,0.05140692]
[1725561306519,3.8202,130.9,130.87,106.06584724]
[1725561307307,3.86841226,130.9,130.87,106.12230443]
[1725561308614,0.04821226,130.9,130.87,102.30140443]
[1725561308818,0.04821226,130.9,130.87,0.05645719]
[1725561309216,3.8208,130.88,130.87,0.05645719]
[1725561309521,4.10183821,130.88,130.87,0.05645719]
[1725561310215,4.10185716,130.88,130.87,0.05645719]
[1725561310913,0.28105716,130.88,130.87,0.05645719]
[1725561311111,0.04821226,130.9,130.87,0.05645719]
[1725561312425,3.8208,130.88,130.87,0.05645719]
[1725561312618,4.10183786,130.88,130.87,0.05645719]
[1725561313019,4.10185203,130.88,130.87,0.05645719]
[1725561316922,4.10185203,130.88,130.77,1.4003]
[1725561316923,3.8224,130.83,130.79,26.42]
[1725561317320,3.8224,130.83,130.8,3.8229]
[1725561317820,0.05026397,130.83,130.81,3.8227]
[1725561318025,0.05026397,130.83,130.81,30.2427]
[1725561318423,0.05026397,130.83,130.82,3.8226]
[1725561318918,0.05026397,130.83,130.81,26.42]
[1725561319625,0.05026397,130.83,130.81,30.2427]
[1725561320327,0.05026397,130.83,130.82,3.8226]
[1725561320919,0.05026397,130.83,130.81,30.2427]
[1725561321518,0.05026397,130.83,130.81,26.42]
[1725561321519,3.87276397,130.83,130.81,26.42]
[1725561323227,0.05026397,130.83,130.81,26.42]
[1725561323728,0.05026397,130.83,130.82,3.8226]
[1725561324118,0.05026397,130.83,130.81,26.42]
[1725561324421,0.05026397,130.83,130.81,30.2426]
[1725561325632,3.87256397,130.83,130.81,30.2426]
[1725561325928,3.87256397,130.83,130.81,14.4026]
[1725561327734,3.87256397,130.83,130.8,14.45440022]
[1725561328732,0.05026397,130.83,130.8,0.05150022]
[1725561329133,3.8229,130.81,130.8,0.05150022]
[1725561334535,10.8612152,130.81,130.74,112.06840434]
[1725561334841,10.58,130.79,130.73,14.4051]
[1725561335141,0.28128277,130.78,130.72,2.6554]
[1725561335438,3.8248,130.75,130.72,6.4808]
[1725561335637,0.0587577,130.75,130.72,0.05379594]
[1725561335942,3.8252,130.73,130.72,0.05379594]
[1725561337336,14.4052,130.73,130.72,0.05379594]
[1725561337635,3.8252,130.73,130.72,0.05379594]
[1725561345745,3.825,130.74,130.72,0.05379594]
[1725561346838,26.46,130.73,130.6,225.0]
[1725561347050,35.4182,130.78,130.64,1.3317]
[1725561347051,26.46,130.71,130.64,1.3317]
[1725561347251,26.46,130.71,130.61,27.8145]
[1725561347742,3.8269,130.68,130.64,3.8277]
[1725561347948,0.05511175,130.67,130.65,0.05817405]
[1725561348542,0.05511175,130.67,130.65,3.88567405]
[1725561348854,0.05511175,130.67,130.65,0.05817405]
[1725561349054,0.05511175,130.67,130.66,3.8272]
[1725561350142,26.46,130.77,130.66,26.46]
[1725561350341,0.28138456,130.76,130.68,26.46]
[1725561350552,3.825,130.74,130.68,26.46]
[1725561350750,30.384215,130.77,130.7,3.8259]
[1725561350944,0.28138092,130.76,130.7,3.8259]
[1725561351145,30.384215,130.77,130.72,0.05447336]
[1725561351146,3.8254,130.73,130.72,0.05447336]
[1725561357656,4.10682768,130.73,130.72,0.05447336]
[1725561357859,0.28142768,130.73,130.64,4.1869]
[1725561358055,0.28142768,130.73,130.66,3.8272]
[1725561358056,26.46,130.71,130.66,3.8272]
[1725561358264,7.56183455,130.7,130.66,3.8272]
[1725561358749,0.04874049,130.69,130.67,0.0555947]
[1725561360562,0.04874049,130.69,130.64,4.1869]
[1725561360563,0.28141448,130.74,130.68,26.46]
[1725561360763,30.384215,130.77,130.69,1.4241]
[1725561361057,0.28138377,130.76,130.69,1.4241]
[1725561361566,0.04891899,130.74,130.71,0.05754245]
[1725561361958,3.87401899,130.74,130.71,0.05754245]
[1725561362161,0.04891899,130.74,130.71,0.05754245]
[1725561363552,0.04891899,130.74,130.72,3.8253]
[1725561363959,0.04891899,130.74,130.71,0.05754245]
[1725561364263,0.04891899,130.74,130.73,3.8252]
[1725561365360,0.04891899,130.74,130.72,3.8253]
[1725561365663,0.04891899,130.74,130.71,0.05754245]
[1725561367259,3.87401899,130.74,130.71,0.05754245]
[1725561367563,0.04891899,130.74,130.71,0.05754245]
[1725561368059,0.04891899,130.74,130.73,3.8252]
[1725561369768,0.04891899,130.74,130.72,3.8252]
[1725561370269,0.04891899,130.74,130.73,3.8252]
[1725561373770,3.8242,130.77,130.75,3.8246]
[1725561374671,27.7704,130.84,130.74,30.21065432]
[1725561374877,0.05277851,130.8,130.78,0.05793909]
[1725561376569,3.87607851,130.8,130.78,0.05793909]
[1725561376770,0.05277851,130.8,130.78,0.05793909]
[1725561377167,3.8234,130.79,130.78,0.05793909]
[1725561377873,0.05277851,130.8,130.78,0.05793909]
[1725561378468,3.87607851,130.8,130.78,0.05793909]
[1725561379076,3.8234,130.79,130.78,0.05793909]
[1725561392493,0.05277851,130.8,130.78,0.05793909]
[1725561392992,0.05277851,130.8,130.78,3.88153909]
[1725561394493,3.87597851,130.8,130.78,0.05793909]
[1725561395994,3.87597851,130.8,130.78,3.88163909]
[1725561397200,0.05277851,130.8,130.79,3.8234]
[1725561397497,0.05277851,130.8,130.78,0.05793909]
[1725561397696,0.05277851,130.8,130.78,26.51793909]
[1725561397896,0.05277851,130.8,130.79,3.8234]
[1725561402499,3.8224,130.83,130.81,3.8226]
[1725561403301,3.87683816,130.83,130.81,3.87878445]
[1725561403697,0.05443816,130.83,130.82,3.8226]
[1725561404200,0.28114488,130.87,130.82,26.46]
[1725561404398,3.73850015,130.91,130.83,26.46]
[1725561404598,0.28108876,130.9,130.83,26.46]
[1725561404900,0.28108876,130.89,130.83,26.46]
[1725561405096,0.28108876,130.89,130.87,3.8209]
[1725561405302,0.30611323,130.89,130.87,3.8209]
[1725561406299,0.30611323,130.89,130.86,3.8212]
[1725561406604,0.30611323,130.89,130.85,0.05153834]
[1725561406908,0.02502447,130.89,130.85,0.05153834]
[1725561407101,0.30611399,130.89,130.85,3.87303834]
[1725561407301,0.30611399,130.89,130.85,0.05153834]
[1725561407603,0.02502447,130.89,130.85,0.05153834]
[1725561407798,3.8213,130.87,130.85,0.05153834]
[1725561408198,0.28111595,130.86,130.85,0.05153834]
[1725561408500,0.02502447,130.89,130.85,0.05153834]
[1725561408702,26.76613058,130.89,130.85,0.05153834]
[1725561408898,3.8214,130.86,130.85,0.05153834]
[1725561409102,4.10250611,130.86,130.85,0.05153834]
[1725561411507,4.10253574,130.86,130.85,0.05153834]
[1725561412608,4.10253572,130.86,130.85,0.05153834]
[1725561413096,0.28113572,130.86,130.8,3.823]
[1725561413297,0.28113572,130.86,130.79,96.5041919]
[1725561413500,26.46,130.85,130.79,96.5041919]
[1725561413702,0.28113572,130.84,130.79,96.5041919]
[1725561414008,3.87606613,130.83,130.79,96.5041919]
[1725561414210,0.04878167,130.82,130.8,0.05248764]
[1725561414402,3.87148167,130.82,130.8,0.05248764]
[1725561414604,0.04878167,130.82,130.8,0.05248764]
[1725561415498,0.04878167,130.82,130.8,3.87548764]
[1725561416711,3.87148167,130.82,130.8,0.05248764]
[1725561417904,3.87148167,130.82,130.8,3.87558764]
[1725561418111,0.04878167,130.82,130.8,0.05248764]
[1725561419310,0.04878167,130.82,130.81,3.8229]
[1725561419508,0.04878167,130.82,130.81,7.62145968]
[1725561420815,3.8215,130.86,130.84,3.8219]
[1725561421210,29.1804,130.91,130.85,3.8214]
[1725561421511,0.28112624,130.89,130.85,3.8214]
[1725561421808,0.30890738,130.88,130.86,0.05199957]
[1725561422003,0.02778114,130.88,130.86,0.05199957]
[1725561422408,0.02778114,130.88,130.87,3.8211]
[1725561422706,0.02778114,130.88,130.86,0.05199957]
[1725561422911,0.30886343,130.88,130.86,0.05199957]
[1725561423105,0.02778114,130.88,130.86,0.05199957]
[1725561423511,3.84878114,130.88,130.86,3.87329957]
[1725561423709,0.02778114,130.88,130.86,0.05199957]
[1725561424109,3.8211,130.87,130.86,0.05199957]
[1725561424318,4.10219254,130.87,130.86,0.05199957]
[1725561424511,4.1022235,130.87,130.86,0.05199957]
[1725561424916,3.822,130.84,130.81,3.8227]
[1725561425614,3.822,130.84,130.8,5.2444]
[1725561425812,0.04899795,130.83,130.81,0.05095626]
[1725561426411,3.87129795,130.83,130.81,0.05095626]
[1725561427112,3.87129795,130.83,130.81,3.87375626]
[1725561427513,0.04899795,130.83,130.81,0.05095626]
[1725561427712,0.04899795,130.83,130.82,3.8226]
[1725561427907,0.04899795,130.83,130.82,30.2826]
[1725561431615,0.04899795,130.83,130.81,3.87365626]
[1725561432106,3.87139795,130.83,130.81,3.87365626]
[1725561432306,0.04899795,130.83,130.81,3.87365626]
[1725561432717,3.87139795,130.83,130.81,0.05095626]
[1725561432908,0.04899795,130.83,130.81,0.05095626]
[1725561433515,3.87139795,130.83,130.81,0.05095626]
[1725561434616,4.10379404,130.82,130.81,0.05095626]
[1725561434815,3.8226,130.82,130.81,0.05095626]
[1725561435116,7.63062722,130.82,130.81,0.05095626]
[1725561435418,7.91181109,130.82,130.81,0.05095626]
[1725561435614,34.37181109,130.82,130.81,0.05095626]
[1725561436121,34.37181109,130.82,130.74,30.20013439]
[1725561436122,3.8237,130.79,130.74,3.74013439]
[1725561436413,3.8237,130.79,130.72,30.7023]
[1725561436717,3.8237,130.79,130.75,3.8244]
[1725561437113,0.04888338,130.78,130.76,0.05084857]
[1725561437818,0.04888338,130.78,130.76,3.87494857]
[1725561439013,0.04888338,130.78,130.77,3.824]
[1725561440614,0.04888338,130.78,130.76,3.87504857]
[1725561446318,3.87278338,130.78,130.76,3.87504857]
[1725561449323,0.04888338,130.78,130.77,3.824]
[1725561453229,26.46,130.88,130.77,26.46]
[1725561453527,1.3618,130.88,130.8,26.46]
[1725561453726,0.28114865,130.87,130.8,26.46]
[1725561453924,0.28114865,130.87,130.81,3.8227]
[1725561454322,3.8221,130.84,130.83,0.0499627]
[1725561455331,3.87304659,130.85,130.83,0.0499627]
[1725561457527,3.87304659,130.85,130.83,3.8722627]
[1725561457925,3.87304659,130.85,130.83,0.0499627]
[1725561458126,3.822,130.84,130.83,0.0499627]
[1725561458527,4.10315564,130.84,130.83,0.0499627]
[1725561461731,4.10315569,130.84,130.83,0.0499627]
[1725561462838,3.822,130.84,130.83,0.0499627]
[1725561463032,4.10314578,130.84,130.83,0.0499627]
[1725561464535,26.74114578,130.84,130.75,1.3945]
[1725561464837,3.04944578,130.83,130.77,3.8238]
[1725561465040,3.8231,130.81,130.77,3.8238]
[1725561465234,2.7683,130.83,130.77,3.8238]
[1725561465435,0.28120184,130.82,130.77,3.8238]
[1725561465634,3.8232,130.8,130.78,0.0530782]
[1725561466036,0.05561231,130.81,130.78,0.0530782]
[1725561466437,26.46,130.8,130.78,0.0530782]
[1725561466738,3.8242,130.77,130.7,27.8437]
[1725561467041,3.8242,130.77,130.71,2.62828695]
[1725561467238,3.8242,130.77,130.7,27.8437]
[1725561467439,3.8242,130.77,130.74,3.8249]
[1725561467740,3.88185863,130.77,130.74,3.87548664]
[1725561472538,0.05765863,130.77,130.76,3.8243]
[1725561472751,0.05765863,130.77,130.74,0.05058664]
[1725561473747,0.05765863,130.77,130.75,3.8244]
[1725561473950,3.88175863,130.77,130.75,3.8244]
[1725561478653,3.8245,130.76,130.74,0.05058664]
[1725561479661,0.05765863,130.77,130.74,0.05058664]
[1725561479662,3.88175863,130.77,130.74,0.05058664]
[1725561480352,3.88175863,130.77,130.75,3.8246]
[1725561480754,0.05765863,130.77,130.75,10.58]
[1725561480949,0.05765863,130.77,130.76,14.4043]
[1725561481149,3.91711853,130.83,130.76,10.58]
[1725561481350,10.58,130.84,130.78,10.58]
[1725561481563,0.28119972,130.83,130.79,3.8233]
[1725561481752,3.90589934,130.82,130.79,3.8233]
[1725561482150,10.58,130.84,130.79,3.8233]
[1725561482358,0.0527133,130.82,130.79,3.88138389]
[1725561482559,3.94063074,130.82,130.79,3.88138389]
[1725561483161,3.94063074,130.82,130.79,0.05808389]
[1725561483555,0.28122603,130.81,130.79,0.05808389]
[1725561483760,3.8232,130.8,130.79,0.05808389]
[1725561488356,4.10444835,130.8,130.79,0.05808389]
[1725561488560,3.8239,130.78,130.73,1.3684]
[1725561488763,0.28124835,130.8,130.74,3.8247]
[1725561488764,26.44,130.8,130.74,3.8247]
[1725561488961,3.8246,130.75,130.7,2.7205]
[1725561489159,26.44,130.78,130.7,2.7205]
[1725561489364,0.28133417,130.77,130.7,2.7205]
[1725561489561,3.8251,130.74,130.73,0.05061766]
[1725561489765,7.66416145,130.74,130.73,0.05061766]
[1725561491267,3.8251,130.74,130.73,0.05061766]
[1725561491463,7.68750502,130.74,130.73,0.05061766]
[1725561495970,3.8262,130.7,130.62,235.90497998]
[1725561496174,7.6974067,130.7,130.63,31.90024242]
[1725561496466,3.8712067,130.7,130.63,30.21936312]
[1725561496669,26.44,130.72,130.63,26.44]
[1725561496872,26.44,130.72,130.64,3.8277]
[1725561496873,0.28145681,130.71,130.64,3.8277]
[1725561497064,3.8267,130.68,130.66,0.0529123]
[1725561497864,0.05192867,130.69,130.66,0.0529123]
[1725561497865,3.827,130.67,130.66,0.0529123]
[1725561499177,3.8268,130.68,130.66,0.0529123]
[1725561499577,3.827,130.67,130.66,0.0529123]
[1725561500377,0.05192867,130.69,130.66,0.0529123]
[1725561500774,0.05192867,130.69,130.66,3.8800123]
[1725561501286,0.05192867,130.69,130.66,0.0529123]
[1725561502182,0.05192867,130.69,130.68,3.8267]
[1725561512077,0.05192867,130.69,130.67,3.8268]
[1725561512281,0.05192867,130.69,130.66,0.0529123]
[1725561513895,3.8267,130.68,130.66,0.0529123]
[1725561514088,0.05192867,130.69,130.66,0.0529123]
[1725561514391,3.8267,130.68,130.66,0.0529123]
[1725561514684,3.8267,130.68,130.66,3.8801123]
[1725561516785,0.05192867,130.69,130.67,3.8269]
[1725561516986,0.05192867,130.69,130.66,0.0529123]
[1725561517385,0.05192867,130.69,130.68,3.8267]
[1725561518686,0.05192867,130.69,130.67,3.8268]
[1725561521395,0.05192867,130.69,130.68,3.8267]
[1725561527195,0.05192867,130.69,130.68,14.4167]
[1725561527497,0.05192867,130.69,130.68,18.34001378]
[1725561528498,0.05192867,130.69,130.68,14.4167]
[1725561528698,0.05192867,130.69,130.68,18.18238577]
[1725561532703,3.85938,130.74,130.72,3.8252]
[1725561533700,0.05427698,130.74,130.72,3.87548505]
[1725561533899,0.05427698,130.74,130.73,3.8252]
[1725561536705,0.05427698,130.74,130.73,14.4152]
[1725561537904,1.3495,130.81,130.73,10.59]
[1725561538104,7.61020872,130.8,130.75,10.59]
[1725561538504,3.78690872,130.8,130.76,3.8242]
[1725561538803,3.8236,130.79,130.76,3.8242]
[1725561539004,3.88109255,130.79,130.77,0.05700648]
[1725561539806,3.8237,130.78,130.77,0.05700648]
[1725561541809,3.88109255,130.79,130.77,3.88100648]
[1725561542000,0.05749255,130.79,130.77,0.05700648]
[1725561542199,0.05749255,130.79,130.77,3.88090648]
[1725561542505,0.05749255,130.79,130.77,0.05700648]
[1725561542801,3.8237,130.78,130.77,0.05700648]
[1725561543003,14.69500531,130.78,130.77,0.05700648]
[1725561543198,3.825,130.74,130.71,3.8258]
[1725561543498,10.59,130.75,130.69,17.02046955]
[1725561543693,3.82708508,130.8,130.69,17.02046955]
[1725561543897,3.8248,130.75,130.72,3.8254]
[1725561544098,3.8248,130.75,130.72,3.87822876]
[1725561544099,3.77706703,130.74,130.72,3.87822876]
[1725561544504,3.87658757,130.75,130.72,3.87822876]
[1725561545006,7.71679706,130.75,130.72,3.87822876]
[1725561545804,7.71679706,130.75,130.73,3.8251]
[1725561545805,0.05188757,130.75,130.73,3.8251]
[1725561548609,3.87648757,130.75,130.73,3.8251]
[1725561549509,0.05188757,130.75,130.73,3.8251]
[1725561550514,0.33320948,130.75,130.73,3.8251]
[1725561550812,4.15790948,130.75,130.73,3.8251]
[1725561551007,3.87658757,130.75,130.73,3.8251]
[1725561558116,0.05188757,130.75,130.74,3.8249]
[1725561566031,0.05188757,130.75,130.72,10.64282876]
[1725561566528,0.05188757,130.75,130.74,3.8249]
[1725561572435,0.05188757,130.75,130.72,0.05282876]
[1725561573332,10.64188757,130.75,130.72,0.05282876]
[1725561573531,3.8252,130.73,130.72,0.05282876]
[1725561573738,7.60771331,130.73,130.72,0.05282876]
[1725561575734,0.05188757,130.75,130.72,0.05282876]
[1725561575936,0.05188757,130.75,130.72,3.87812876]
[1725561576132,0.05188757,130.75,130.72,0.05282876]
[1725561576940,3.8252,130.74,130.72,0.05282876]
[1725561578735,7.70704157,130.73,130.72,0.05282876]
[1725561578945,3.8252,130.73,130.72,0.05282876]
[1725561579240,7.66608611,130.73,130.72,0.05282876]
[1725561579543,3.8252,130.73,130.72,0.05282876]
[1725561580240,7.68177726,130.73,130.72,0.05282876]
[1725561580534,3.8252,130.73,130.72,0.05282876]
[1725561580735,7.61824726,130.73,130.72,0.05282876]
[1725561587144,7.61824726,130.73,130.6,232.6575]
[1725561587145,4.07442066,130.73,130.6,232.6575]
[1725561587340,10.59,130.71,130.64,10.59]
[1725561587543,10.59,130.71,130.66,2.631232]
[1725561587742,3.8262,130.7,130.67,3.8267]
[1725561588147,3.8844893,130.7,130.67,0.04891157]
[1725561588345,3.8844893,130.7,130.68,3.8266]
[1725561591445,0.0582893,130.7,130.68,3.8266]
[1725561594054,0.0582893,130.7,130.69,3.8264]
[1725561594747,0.0582893,130.7,130.69,14.4164]
[1725561596050,1.3904,130.76,130.72,3.8253]
[1725561596550,3.825,130.74,130.72,3.8253]
[1725561596954,3.88037918,130.74,130.72,3.8760764]
[1725561598454,3.88037918,130.74,130.72,0.0507764]
[1725561599244,3.88037918,130.74,130.72,3.8762764]
[1725561599448,3.88037918,130.74,130.72,0.0507764]
[1725561599955,3.8252,130.73,130.72,0.0507764]
[1725561600450,7.61565718,130.73,130.72,0.0507764]
[1725561603657,18.20565718,130.73,130.72,0.0507764]
[1725561604954,3.8263,130.7,130.66,10.59]
[1725561605958,0.05263326,130.69,130.67,0.04916933]
[1725561606456,0.05263326,130.69,130.68,3.8265]
[1725561609860,0.05263326,130.69,130.67,3.87596933]
[1725561610050,3.87903326,130.69,130.67,3.87596933]
[1725561610249,0.05263326,130.69,130.67,3.87596933]
[1725561611560,0.05263326,130.69,130.67,0.04916933]
[1725561611759,10.59,130.68,130.67,0.04916933]
[1725561612659,10.59,130.68,130.62,13.19452056]
[1725561612862,10.59,130.66,130.61,100.82432525]
[1725561613067,10.59,130.66,130.6,10.59]
[1725561613261,3.8281,130.64,130.61,3.8285]
[1725561613461,3.74377172,130.64,130.58,10.59]
[1725561613667,3.8283,130.63,130.6,3.8289]
[1725561613858,0.04947816,130.62,130.6,0.05130449]
[1725561614864,0.04947816,130.62,130.6,3.88020449]
[1725561615766,0.04947816,130.62,130.6,0.05130449]
[1725561615964,0.04947816,130.62,130.61,3.8287]
[1725561616270,10.87150586,130.7,130.61,10.59]
[1725561616466,0.2814671,130.69,130.65,3.8274]
[1725561617171,3.87643561,130.68,130.66,0.0558883]
[1725561617966,3.87643561,130.68,130.66,3.8830883]
[1725561618367,0.04953561,130.68,130.66,3.8830883]
[1725561618565,0.04953561,130.68,130.67,3.827]
[1725561620565,0.28136701,130.74,130.71,3.8256]
[1725561621167,10.59,130.75,130.71,3.8256]
[1725561621367,10.59,130.75,130.69,10.59]
[1725561621368,10.59,130.75,130.72,3.8255]
[1725561621569,0.0562117,130.75,130.72,0.05690083]
[1725561622469,0.0562117,130.75,130.73,3.825]
[1725561625067,3.8808117,130.75,130.73,3.825]
[1725561625466,10.6462117,130.75,130.72,0.05690083]
[1725561626166,3.8251,130.74,130.72,0.05690083]
[1725561626571,10.6462117,130.75,130.72,0.05690083]
[1725561626768,14.4710117,130.75,130.72,3.88220083]
[1725561630075,10.59,130.74,130.72,0.05690083]
[1725561630472,3.8252,130.73,130.72,0.05690083]
[1725561630675,7.59739285,130.73,130.72,0.05690083]
[1725561644088,3.8251,130.74,130.72,0.05690083]
[1725561644388,0.0562117,130.75,130.72,0.05690083]
[1725561644691,0.0562117,130.75,130.73,3.825]
[1725561645187,3.8809117,130.75,130.73,3.825]
[1725561646086,3.8809117,130.75,130.72,3.88220083]
[1725561647582,0.0562117,130.75,130.73,3.8252]
[1725561647887,0.0562117,130.75,130.73,10.59]
[1725561648083,0.0562117,130.75,130.72,10.64690083]
[1725561648285,0.0562117,130.75,130.73,3.8251]
[1725561649486,0.0562117,130.75,130.74,14.4149]
[1725561649689,1.3075,130.82,130.74,10.59]
[1725561649993,4.13674446,130.81,130.77,10.59]
[1725561650191,3.85548749,130.81,130.77,10.59]
[1725561650386,84.01453976,130.83,130.77,10.59]
[1725561650589,3.823,130.81,130.78,3.8235]
[1725561650797,7.79298951,130.81,130.79,0.05696717]
[1725561650994,3.8774334,130.81,130.79,0.05696717]
[1725561651296,3.8232,130.8,130.79,0.05696717]
[1725561651895,7.68088692,130.81,130.79,0.05696717]
[1725561653289,3.8774334,130.81,130.79,0.05696717]
[1725561653685,7.68939515,130.81,130.79,0.05696717]
[1725561654693,3.8232,130.8,130.79,0.05696717]
[1725561655700,14.4132,130.8,130.79,0.05696717]
[1725561655901,14.6944607,130.8,130.79,0.05696717]
[1725561658199,10.8712607,130.8,130.72,2.8757]
[1725561658409,10.59,130.76,130.72,2.8757]
[1725561659304,3.88359601,130.75,130.73,0.05146916]
[1725561659504,0.05879601,130.75,130.73,0.05146916]
[1725561660191,0.05879601,130.75,130.73,3.87656916]
[1725561661005,0.05879601,130.75,130.74,3.8249]
[1725561661808,0.05879601,130.75,130.73,3.87656916]
[1725561662607,0.05879601,130.75,130.73,0.05146916]
[1725561663107,10.64879601,130.75,130.73,0.05146916]
[1725561663300,3.8249,130.74,130.73,0.05146916]
[1725561664808,10.64879601,130.75,130.73,0.05146916]
[1725561664809,3.88359601,130.75,130.73,0.05146916]
[1725561665209,0.05879601,130.75,130.73,0.05146916]
[1725561665398,0.05879601,130.75,130.73,10.64146916]
[1725561665710,0.05879601,130.75,130.74,3.8249]
[1725561666306,0.05879601,130.75,130.73,3.87646916]
[1725561666511,0.05879601,130.75,130.73,0.05146916]
[1725561666713,10.64879601,130.75,130.73,0.05146916]
[1725561667218,3.8249,130.74,130.73,0.05146916]
[1725561667403,0.05879601,130.75,130.73,0.05146916]
[1725561668113,0.05879601,130.75,130.73,3.87646916]
[1725561670812,3.88349601,130.75,130.73,3.87646916]
[1725561672518,0.05879601,130.75,130.73,3.87646916]
[1725561673319,3.88349601,130.75,130.73,3.87646916]
[1725561673615,3.88349601,130.75,130.73,0.05146916]
[1725561674816,3.8249,130.74,130.73,0.05146916]
[1725561675523,7.60120167,130.74,130.73,0.05146916]
[1725561676018,34.33258459,130.74,130.73,0.05146916]
[1725561676313,30.50768459,130.74,130.64,96.70980758]
[1725561676520,26.45,130.71,130.64,96.70980758]
[1725561676715,3.8269,130.68,130.64,96.70980758]
[1725561676916,30.31126035,130.71,130.64,96.70980758]
[1725561677116,0.05823792,130.69,130.66,0.0515927]
[1725561677918,3.8267,130.68,130.66,0.0515927]
[1725561679623,26.50823792,130.69,130.66,0.0515927]
[1725561679919,26.45,130.67,130.66,0.0515927]
[1725561680310,26.45,130.67,130.6,1.3177]
[1725561680621,26.45,130.67,130.48,7.6649]
[1725561680622,26.45,130.62,130.55,6.5278705]
[1725561680812,30.2786,130.62,130.55,2.6368]
[1725561681016,30.2786,130.62,130.58,3.8295]
[1725561681320,3.92935144,130.61,130.59,0.05231541]
[1725561681518,0.05091552,130.61,130.59,0.05231541]
[1725561681718,0.05091552,130.61,130.59,3.88161541]
[1725561682414,0.05091552,130.61,130.59,0.05231541]
[1725561684321,0.05091552,130.61,130.59,3.88161541]
[1725561687423,0.05091552,130.61,130.6,3.829]
[1725561691220,0.05091552,130.61,130.59,3.88141541]
[1725561693525,30.27726855,130.6,130.54,3.7901106]
[1725561693731,3.82726855,130.6,130.53,2.7186]
[1725561693930,3.8293,130.59,130.56,3.83]
[1725561694434,3.88205754,130.59,130.56,3.88287341]
[1725561695324,3.88205754,130.59,130.57,3.8299]
[1725561695529,0.05275754,130.59,130.57,3.8299]
[1725561695730,0.05275754,130.59,130.56,0.05287341]
[1725561695931,0.05275754,130.59,130.58,3.8296]
[1725561696128,0.05275754,130.59,130.57,1.3786]
[1725561696629,0.05275754,130.59,130.56,3.88287341]
[1725561696823,3.8297,130.58,130.56,0.05287341]
[1725561697531,3.8299,130.57,130.56,0.05287341]
[1725561698835,0.05275754,130.59,130.56,3.88307341]
[1725561698836,3.8297,130.58,130.56,3.88307341]
[1725561699131,0.05275754,130.59,130.56,3.88307341]
[1725561700434,3.8296,130.58,130.56,3.88307341]
[1725561701929,0.05275754,130.59,130.57,3.8299]
[1725561707134,3.88205754,130.59,130.57,3.8299]
[1725561707332,0.05275754,130.59,130.56,3.88287341]
[1725561707732,3.88235754,130.59,130.56,3.88287341]
[1725561708038,0.05275754,130.59,130.56,3.88287341]
[1725561708252,3.8299,130.57,130.56,0.05287341]
[1725561711939,0.05275754,130.59,130.51,3.8315]
[1725561711940,26.48,130.58,130.51,3.8315]
[1725561712143,26.48,130.58,130.49,3.87097168]
[1725561712342,26.48,130.58,130.47,30.4381]
[1725561712537,3.8311,130.53,130.51,3.8316]
[1725561713040,3.8887322,130.53,130.51,3.88917313]
[1725561713834,3.8314,130.52,130.51,0.05757313]
[1725561714046,7.682831,130.52,130.51,0.05757313]
[1725561714447,3.8314,130.52,130.51,0.05757313]
[1725561714645,7.73529268,130.52,130.51,0.05757313]
[1725561714945,3.8314,130.52,130.51,0.05757313]
[1725561716739,3.8888322,130.53,130.51,0.05757313]
[1725561717849,3.8314,130.52,130.51,0.05757313]
[1725561721042,30.3114,130.52,130.51,0.05757313]
[1725561721442,26.48,130.52,130.46,103.62684473]
[1725561721740,26.48,130.49,130.46,103.62684473]
[1725561721941,3.8328,130.48,130.46,103.62684473]
[1725561722145,26.48,130.49,130.46,103.62684473]
[1725561722444,30.3695492,130.49,130.46,103.68269743]
[1725561722637,0.0572492,130.49,130.46,103.68269743]
[1725561723049,3.8896492,130.49,130.46,103.68269743]
[1725561723243,0.0572492,130.49,130.46,0.0558527]
[1725561723751,3.8896492,130.49,130.46,0.0558527]
[1725561725046,0.0572492,130.49,130.46,0.0558527]
[1725561725439,3.86402575,130.54,130.47,26.48]
[1725561725643,29.1806,130.56,130.47,26.48]
[1725561725844,0.28180404,130.55,130.48,1.3859]
[1725561726150,3.8312,130.53,130.5,3.8317]
[1725561726343,26.48,130.54,130.48,1.3859]